[Event "Betsys MČR v online bleskovém šachu 2021"]
[Site "Chess.com"]
[Date "2021.04.17"]
[Round "11"]
[White "l_pavlasek"]
[Black "DominikS3"]
[Result "1-0"]
[WhiteElo "1650"]
[BlackElo "1341"]
[TimeControl "180+1"]
[EndTime "10:50:24 PDT"]
[Termination "Uživatel l_pavlasek zvítězil matem"]

1. e4 {[%clk 0:03:00.9]} 1... c6 {[%clk 0:02:59.6]} 2. d4 {[%clk 0:02:59.4]}
2... d5 {[%clk 0:02:59.9]} 3. exd5 {[%clk 0:02:59.7]} 3... cxd5 {[%clk
0:03:00.8]} 4. Nf3 {[%clk 0:02:59.2]} 4... Nc6 {[%clk 0:03:00.9]} 5. Bf4 {[%clk
0:02:56.7]} 5... Bg4 {[%clk 0:03:00.4]} 6. c3 {[%clk 0:02:55.3]} 6... Nf6 {[%clk
0:02:59.2]} 7. Nbd2 {[%clk 0:02:53.6]} 7... e6 {[%clk 0:02:58.8]} 8. Be2 {[%clk
0:02:53]} 8... Be7 {[%clk 0:02:58.6]} 9. Ne5 {[%clk 0:02:49]} 9... Bxe2 {[%clk
0:02:55.1]} 10. Qxe2 {[%clk 0:02:28.1]} 10... O-O {[%clk 0:02:53.8]} 11. O-O
{[%clk 0:02:23.9]} 11... Nxe5 {[%clk 0:02:49]} 12. Bxe5 {[%clk 0:02:22.4]} 12...
Rc8 {[%clk 0:02:45.3]} 13. Nf3 {[%clk 0:02:18.6]} 13... Ng4 {[%clk 0:02:41.8]}
14. Bg3 {[%clk 0:02:15.9]} 14... Nf6 {[%clk 0:02:39.1]} 15. Ne5 {[%clk
0:02:15.2]} 15... Bd6 {[%clk 0:02:34.4]} 16. Rad1 {[%clk 0:02:14.1]} 16... Qc7
{[%clk 0:02:30.2]} 17. Rd3 {[%clk 0:02:08.2]} 17... Ne4 {[%clk 0:02:26.2]} 18.
Ng4 {[%clk 0:01:50.5]} 18... Nxg3 {[%clk 0:02:23.8]} 19. fxg3 {[%clk 0:01:50]}
19... h6 {[%clk 0:02:19.9]} 20. Rdf3 {[%clk 0:01:46.2]} 20... Qe7 {[%clk
0:02:09.6]} 21. Qe3 {[%clk 0:01:33.6]} 21... Qg5 {[%clk 0:02:03.2]} 22. Qxg5
{[%clk 0:01:21.3]} 22... hxg5 {[%clk 0:02:01.6]} 23. h4 {[%clk 0:01:10]} 23...
gxh4 {[%clk 0:01:59.3]} 24. gxh4 {[%clk 0:01:09.8]} 24... b5 {[%clk 0:01:50.5]}
25. a3 {[%clk 0:01:07.4]} 25... a6 {[%clk 0:01:49.1]} 26. h5 {[%clk 0:01:04.8]}
26... Be7 {[%clk 0:01:37.4]} 27. h6 {[%clk 0:01:01]} 27... g6 {[%clk 0:01:35.2]}
28. Nf6+ {[%clk 0:00:45.4]} 28... Bxf6 {[%clk 0:01:32.4]} 29. Rxf6 {[%clk
0:00:44.9]} 29... Kh7 {[%clk 0:01:31.7]} 30. Rxf7+ {[%clk 0:00:43.2]} 30... Rxf7
{[%clk 0:01:31.5]} 31. Rxf7+ {[%clk 0:00:42.8]} 31... Kxh6 {[%clk 0:01:32.4]}
32. Re7 {[%clk 0:00:38.4]} 32... Rc6 {[%clk 0:01:30.6]} 33. Kf2 {[%clk
0:00:37.4]} 33... Kg5 {[%clk 0:01:29.8]} 34. Kf3 {[%clk 0:00:35.9]} 34... Kf6
{[%clk 0:01:29.3]} 35. Re8 {[%clk 0:00:28]} 35... a5 {[%clk 0:01:21.3]} 36. Rb8
{[%clk 0:00:23]} 36... b4 {[%clk 0:01:12.3]} 37. axb4 {[%clk 0:00:21.9]} 37...
axb4 {[%clk 0:01:11.9]} 38. Rxb4 {[%clk 0:00:21.8]} 38... Kf5 {[%clk 0:01:09.7]}
39. g3 {[%clk 0:00:20.8]} 39... g5 {[%clk 0:01:07.9]} 40. Rb8 {[%clk 0:00:20.3]}
40... g4+ {[%clk 0:01:05]} 41. Ke3 {[%clk 0:00:20]} 41... e5 {[%clk 0:00:59.4]}
42. dxe5 {[%clk 0:00:18.8]} 42... Kxe5 {[%clk 0:00:58.8]} 43. Re8+ {[%clk
0:00:18.6]} 43... Kf5 {[%clk 0:00:56.4]} 44. Kd4 {[%clk 0:00:18.6]} 44... Rd6
{[%clk 0:00:54.9]} 45. Re5+ {[%clk 0:00:17.2]} 45... Kf6 {[%clk 0:00:51.5]} 46.
Rxd5 {[%clk 0:00:17]} 46... Rxd5+ {[%clk 0:00:49.9]} 47. Kxd5 {[%clk 0:00:17]}
47... Kf5 {[%clk 0:00:49.1]} 48. b4 {[%clk 0:00:16.4]} 48... Kf6 {[%clk
0:00:47.5]} 49. b5 {[%clk 0:00:16.1]} 49... Ke7 {[%clk 0:00:48.4]} 50. c4 {[%clk
0:00:16.1]} 50... Kd7 {[%clk 0:00:48.9]} 51. c5 {[%clk 0:00:16.4]} 51... Kc8
{[%clk 0:00:49.8]} 52. c6 {[%clk 0:00:16.4]} 52... Kb8 {[%clk 0:00:49.8]} 53. b6
{[%clk 0:00:16.4]} 53... Kc8 {[%clk 0:00:45.8]} 54. Ke5 {[%clk 0:00:16.5]} 54...
Kb8 {[%clk 0:00:45.2]} 55. Kf4 {[%clk 0:00:16.4]} 55... Kc8 {[%clk 0:00:46.1]}
56. Kxg4 {[%clk 0:00:16.6]} 56... Kb8 {[%clk 0:00:46.1]} 57. Kf5 {[%clk
0:00:16.8]} 57... Kc8 {[%clk 0:00:46.4]} 58. Ke6 {[%clk 0:00:17]} 58... Kb8
{[%clk 0:00:46.2]} 59. g4 {[%clk 0:00:17.4]} 59... Kc8 {[%clk 0:00:45.2]} 60. g5
{[%clk 0:00:17.2]} 60... Kb8 {[%clk 0:00:45.3]} 61. g6 {[%clk 0:00:17.4]} 61...
Kc8 {[%clk 0:00:45.2]} 62. g7 {[%clk 0:00:17.7]} 62... Kd8 {[%clk 0:00:44.8]}
63. g8=Q# {[%clk 0:00:17.8]} 1-0

[Event "Betsys MČR v online bleskovém šachu 2021"]
[Site "Chess.com"]
[Date "2021.04.17"]
[Round "11"]
[White "ffbp3q"]
[Black "DavidekIII"]
[Result "1-0"]
[WhiteElo "2361"]
[BlackElo "2196"]
[TimeControl "180+1"]
[EndTime "10:50:27 PDT"]
[Termination "Uživatel ffbp3q zvítězil na čas"]

1. d4 {[%clk 0:03:00.9]} 1... Nf6 {[%clk 0:02:58]} 2. c4 {[%clk 0:03:00.8]} 2...
c5 {[%clk 0:02:57.8]} 3. d5 {[%clk 0:03:00.4]} 3... b5 {[%clk 0:02:57.3]} 4.
cxb5 {[%clk 0:03:00]} 4... a6 {[%clk 0:02:57]} 5. b6 {[%clk 0:03:00.3]} 5... d6
{[%clk 0:02:53.6]} 6. Nc3 {[%clk 0:03:00.2]} 6... g6 {[%clk 0:02:53.2]} 7. Nf3
{[%clk 0:02:58.7]} 7... Bg7 {[%clk 0:02:53]} 8. e4 {[%clk 0:02:58.8]} 8... Nbd7
{[%clk 0:02:52.9]} 9. Be2 {[%clk 0:02:54.9]} 9... O-O {[%clk 0:02:51.1]} 10. O-O
{[%clk 0:02:54.2]} 10... Nxb6 {[%clk 0:02:50.9]} 11. h3 {[%clk 0:02:40.2]} 11...
Qc7 {[%clk 0:02:12]} 12. Bf4 {[%clk 0:02:34.7]} 12... Bb7 {[%clk 0:02:02.9]} 13.
Qc2 {[%clk 0:02:20.7]} 13... Nfd7 {[%clk 0:01:27.6]} 14. Rad1 {[%clk 0:02:15.8]}
14... Rac8 {[%clk 0:01:23.7]} 15. Rfe1 {[%clk 0:02:09.6]} 15... c4 {[%clk
0:01:10.2]} 16. Bf1 {[%clk 0:01:58.5]} 16... Rfd8 {[%clk 0:00:56.2]} 17. Bg3
{[%clk 0:01:47.2]} 17... Qc5 {[%clk 0:00:37.7]} 18. Bf4 {[%clk 0:01:33.1]} 18...
Qc7 {[%clk 0:00:34.1]} 19. Be3 {[%clk 0:01:32.2]} 19... Nc5 {[%clk 0:00:31.4]}
20. Bd4 {[%clk 0:01:29.9]} 20... Nbd7 {[%clk 0:00:26.1]} 21. Bxg7 {[%clk
0:01:28.2]} 21... Kxg7 {[%clk 0:00:27]} 22. Qd2 {[%clk 0:01:24.3]} 22... f6
{[%clk 0:00:25.7]} 23. Bxc4 {[%clk 0:01:17.8]} 23... Na4 {[%clk 0:00:15.2]} 24.
b3 {[%clk 0:00:54.1]} 24... Nxc3 {[%clk 0:00:14.2]} 25. Qxc3 {[%clk 0:00:53.4]}
25... Ne5 {[%clk 0:00:14]} 26. Nd4 {[%clk 0:00:50.9]} 26... Qb6 {[%clk
0:00:04.3]} 27. Ne6+ {[%clk 0:00:49.5]} 27... Kf7 {[%clk 0:00:04.8]} 28. Nxd8+
{[%clk 0:00:49.5]} 28... Rxd8 {[%clk 0:00:05.3]} 29. Qe3 {[%clk 0:00:47.6]}
29... Qa5 {[%clk 0:00:04.2]} 30. f4 {[%clk 0:00:40.3]} 30... Nd7 {[%clk
0:00:02.6]} 31. e5 {[%clk 0:00:37.6]} 31... dxe5 {[%clk 0:00:02.2]} 32. d6+
{[%clk 0:00:37]} 32... e6 {[%clk 0:00:01.7]} 33. fxe5 {[%clk 0:00:33.5]} 33...
Nxe5 {[%clk 0:00:02.6]} 34. Rf1 {[%clk 0:00:21.8]} 34... Qb4 {[%clk 0:00:01.8]}
35. Qxe5 {[%clk 0:00:19.9]} 35... Qb6+ {[%clk 0:00:01.2]} 36. Kh2 {[%clk
0:00:17.1]} 36... f5 {[%clk 0:00:01.7]} 37. Qxe6+ {[%clk 0:00:14.6]} 37... Kg7
{[%clk 0:00:02.1]} 38. Qe7+ {[%clk 0:00:14]} 38... Kh6 {[%clk 0:00:02.4]} 39.
Rfe1 {[%clk 0:00:07.3]} 39... Qc6 {[%clk 0:00:02.4]} 40. Qe3+ {[%clk 0:00:05.3]}
40... Kg7 {[%clk 0:00:01.6]} 41. Bd5 {[%clk 0:00:04.6]} 1-0

[Event "Betsys MČR v online bleskovém šachu 2021"]
[Site "Chess.com"]
[Date "2021.04.17"]
[Round "11"]
[White "machajda"]
[Black "kol340"]
[Result "1/2-1/2"]
[WhiteElo "2037"]
[BlackElo "1892"]
[TimeControl "180+1"]
[EndTime "10:50:27 PDT"]
[Termination "Remíza opakováním pozice"]

1. e4 {[%clk 0:03:00.9]} 1... c6 {[%clk 0:02:57.1]} 2. Nf3 {[%clk 0:03:00.2]}
2... d5 {[%clk 0:02:57.5]} 3. Nc3 {[%clk 0:03:00.8]} 3... dxe4 {[%clk
0:02:57.1]} 4. Nxe4 {[%clk 0:03:01.6]} 4... Nf6 {[%clk 0:02:57.2]} 5. Nxf6+
{[%clk 0:03:01]} 5... gxf6 {[%clk 0:02:58.1]} 6. d4 {[%clk 0:03:00.6]} 6... Bf5
{[%clk 0:02:58.2]} 7. Bd3 {[%clk 0:02:58.1]} 7... Bg6 {[%clk 0:02:58.5]} 8. Bf4
{[%clk 0:02:56.4]} 8... e6 {[%clk 0:02:58.3]} 9. Qd2 {[%clk 0:02:51.9]} 9... Bd6
{[%clk 0:02:58.2]} 10. Bxd6 {[%clk 0:02:51.1]} 10... Qxd6 {[%clk 0:02:58.1]} 11.
O-O-O {[%clk 0:02:51.5]} 11... Nd7 {[%clk 0:02:58.1]} 12. h4 {[%clk 0:02:47.5]}
12... O-O-O {[%clk 0:02:55.4]} 13. h5 {[%clk 0:02:35.7]} 13... Bxd3 {[%clk
0:02:54.4]} 14. Qxd3 {[%clk 0:02:36.6]} 14... Qf4+ {[%clk 0:02:33.9]} 15. Kb1
{[%clk 0:02:26.4]} 15... h6 {[%clk 0:02:31.1]} 16. g3 {[%clk 0:02:23.7]} 16...
Qd6 {[%clk 0:02:22.5]} 17. c4 {[%clk 0:02:18.7]} 17... c5 {[%clk 0:02:20.2]} 18.
d5 {[%clk 0:02:07.6]} 18... Ne5 {[%clk 0:02:15.1]} 19. Nxe5 {[%clk 0:02:05.4]}
19... fxe5 {[%clk 0:02:09.2]} 20. Qe3 {[%clk 0:02:00.3]} 20... f5 {[%clk
0:02:03.8]} 21. dxe6 {[%clk 0:01:53.3]} 21... Qxe6 {[%clk 0:02:03.6]} 22. Qxc5+
{[%clk 0:01:51.3]} 22... Kb8 {[%clk 0:02:00.8]} 23. Rhe1 {[%clk 0:01:24.5]}
23... e4 {[%clk 0:01:59.3]} 24. Rd5 {[%clk 0:01:15.5]} 24... Rc8 {[%clk
0:01:54.9]} 25. Qd4 {[%clk 0:01:14.8]} 25... Rhe8 {[%clk 0:01:36]} 26. c5 {[%clk
0:01:13]} 26... Re7 {[%clk 0:01:15.4]} 27. Rc1 {[%clk 0:00:51.6]} 27... e3
{[%clk 0:00:58.3]} 28. fxe3 {[%clk 0:00:50.8]} 28... Qxe3 {[%clk 0:00:58.7]} 29.
Qxe3 {[%clk 0:00:49.7]} 29... Rxe3 {[%clk 0:00:59.6]} 30. Rxf5 {[%clk 0:00:49]}
30... Rxg3 {[%clk 0:00:59.8]} 31. Rf6 {[%clk 0:00:48.8]} 31... Rg5 {[%clk
0:00:58.6]} 32. Rxh6 {[%clk 0:00:47.1]} 32... Rcxc5 {[%clk 0:00:58.4]} 33. Rh8+
{[%clk 0:00:43.3]} 33... Kc7 {[%clk 0:00:57.8]} 34. Rxc5+ {[%clk 0:00:41.3]}
34... Rxc5 {[%clk 0:00:57.4]} 35. a3 {[%clk 0:00:39.4]} 35... Kb6 {[%clk
0:00:51.8]} 36. h6 {[%clk 0:00:39.3]} 36... Rh5 {[%clk 0:00:51.2]} 37. h7 {[%clk
0:00:39.6]} 37... a6 {[%clk 0:00:50.9]} 38. Ka2 {[%clk 0:00:39.4]} 38... Rh2
{[%clk 0:00:49.7]} 39. Kb3 {[%clk 0:00:37.5]} 39... Rh3+ {[%clk 0:00:49.8]} 40.
Kc2 {[%clk 0:00:36.8]} 40... Rh4 {[%clk 0:00:50.7]} 41. Kd3 {[%clk 0:00:35.6]}
41... Rh2 {[%clk 0:00:51.6]} 42. Ke4 {[%clk 0:00:35.6]} 42... Rh1 {[%clk
0:00:49.3]} 43. Kf5 {[%clk 0:00:34.8]} 43... Kb5 {[%clk 0:00:49.4]} 44. Ke6
{[%clk 0:00:26.5]} 44... b6 {[%clk 0:00:48.6]} 45. Kd5 {[%clk 0:00:25.1]} 45...
Rh5+ {[%clk 0:00:47.4]} 46. Kd4 {[%clk 0:00:24.8]} 46... Rh4+ {[%clk 0:00:47.6]}
47. Kc3 {[%clk 0:00:25]} 47... Rh3+ {[%clk 0:00:48.1]} 48. Kc2 {[%clk
0:00:24.6]} 48... Rh2+ {[%clk 0:00:48.7]} 49. Kb3 {[%clk 0:00:24.8]} 49... Rh4
{[%clk 0:00:49.1]} 50. Ka2 {[%clk 0:00:23.6]} 50... Rh2 {[%clk 0:00:49]} 51. Kb1
{[%clk 0:00:19.7]} 51... Rh1+ {[%clk 0:00:48.9]} 52. Kc2 {[%clk 0:00:20.1]}
52... Rh2+ {[%clk 0:00:49.8]} 53. Kd3 {[%clk 0:00:20.5]} 53... Rh3+ {[%clk
0:00:50.2]} 54. Ke4 {[%clk 0:00:20.7]} 54... Rh4+ {[%clk 0:00:50.2]} 55. Kf5
{[%clk 0:00:21.1]} 55... Rh1 {[%clk 0:00:50.4]} 56. Kg6 {[%clk 0:00:20.6]} 56...
Rg1+ {[%clk 0:00:50.6]} 57. Kf6 {[%clk 0:00:21.2]} 57... Rf1+ {[%clk 0:00:51]}
58. Ke5 {[%clk 0:00:21.1]} 58... Re1+ {[%clk 0:00:51.4]} 59. Kf4 {[%clk
0:00:21.1]} 59... Rf1+ {[%clk 0:00:51.4]} 60. Kg3 {[%clk 0:00:20.9]} 60... Rh1
{[%clk 0:00:51.4]} 61. Kg2 {[%clk 0:00:20.6]} 61... Rh6 {[%clk 0:00:51.2]} 62.
Kf3 {[%clk 0:00:20.8]} 62... Ka4 {[%clk 0:00:49.5]} 63. Ke2 {[%clk 0:00:21.4]}
63... b5 {[%clk 0:00:46.1]} 64. Kd3 {[%clk 0:00:20.2]} 64... Rh3+ {[%clk
0:00:45.2]} 65. Kc2 {[%clk 0:00:20.4]} 65... Rh2+ {[%clk 0:00:44.7]} 66. Kc3
{[%clk 0:00:20.5]} 66... Rh3+ {[%clk 0:00:44.3]} 67. Kc2 {[%clk 0:00:21]} 67...
Rh2+ {[%clk 0:00:44.7]} 68. Kc3 {[%clk 0:00:21.3]} 68... Rh3+ {[%clk 0:00:45.2]}
69. Kc2 {[%clk 0:00:19]} 1/2-1/2

[Event "Betsys MČR v online bleskovém šachu 2021"]
[Site "Chess.com"]
[Date "2021.04.17"]
[Round "11"]
[White "sachistamartin"]
[Black "Tomasbezdek07"]
[Result "0-1"]
[WhiteElo "1430"]
[BlackElo "1700"]
[TimeControl "180+1"]
[EndTime "10:50:27 PDT"]
[Termination "Uživatel Tomasbezdek07 zvítězil matem"]

1. c4 {[%clk 0:03:00.5]} 1... g6 {[%clk 0:02:58.6]} 2. Nc3 {[%clk 0:03:00.1]}
2... Bg7 {[%clk 0:02:59]} 3. Nf3 {[%clk 0:02:59.3]} 3... Nf6 {[%clk 0:02:59.4]}
4. e3 {[%clk 0:02:58.9]} 4... O-O {[%clk 0:02:59.8]} 5. d4 {[%clk 0:02:58.5]}
5... d6 {[%clk 0:02:57.6]} 6. Bd3 {[%clk 0:02:57.4]} 6... c5 {[%clk 0:02:58.1]}
7. Bd2 {[%clk 0:02:56.3]} 7... b6 {[%clk 0:02:57.9]} 8. O-O {[%clk 0:02:55.7]}
8... Bb7 {[%clk 0:02:57.8]} 9. a3 {[%clk 0:02:53.8]} 9... Nbd7 {[%clk
0:02:55.2]} 10. Qc2 {[%clk 0:02:49.1]} 10... e5 {[%clk 0:02:53.9]} 11. dxe5
{[%clk 0:02:48.6]} 11... Nxe5 {[%clk 0:02:53]} 12. Nxe5 {[%clk 0:02:48.2]} 12...
dxe5 {[%clk 0:02:52.5]} 13. e4 {[%clk 0:02:45.7]} 13... Qd7 {[%clk 0:02:45.9]}
14. Nd5 {[%clk 0:02:45.3]} 14... Nxd5 {[%clk 0:02:44.4]} 15. exd5 {[%clk
0:02:43.8]} 15... f5 {[%clk 0:02:42.2]} 16. Rae1 {[%clk 0:02:40.5]} 16... e4
{[%clk 0:02:39.7]} 17. Be2 {[%clk 0:02:37.3]} 17... Rad8 {[%clk 0:02:34.5]} 18.
Bf4 {[%clk 0:02:30.9]} 18... b5 {[%clk 0:02:27.9]} 19. b3 {[%clk 0:02:29.8]}
19... a6 {[%clk 0:02:18.8]} 20. Rd1 {[%clk 0:02:24.9]} 20... Rfe8 {[%clk
0:02:16.3]} 21. d6 {[%clk 0:02:23.4]} 21... Be5 {[%clk 0:02:12.2]} 22. Bxe5
{[%clk 0:02:14.1]} 22... Rxe5 {[%clk 0:02:10.9]} 23. Qc3 {[%clk 0:02:11.2]}
23... Rde8 {[%clk 0:01:50.4]} 24. Rd2 {[%clk 0:02:04.1]} 24... e3 {[%clk
0:01:42.9]} 25. fxe3 {[%clk 0:01:59.2]} 25... Rxe3 {[%clk 0:01:40.7]} 26. Qf6
{[%clk 0:01:54.3]} 26... Rxe2 {[%clk 0:01:31.8]} 27. Rxe2 {[%clk 0:01:42.6]}
27... Rxe2 {[%clk 0:01:27.4]} 28. Rd1 {[%clk 0:01:39.6]} 28... Rxg2+ {[%clk
0:01:25.3]} 29. Kf1 {[%clk 0:01:38]} 29... Rxh2 {[%clk 0:01:14.5]} 30. Qe7
{[%clk 0:01:34.1]} 30... Rh1+ {[%clk 0:01:10.4]} 31. Ke2 {[%clk 0:01:33.4]}
31... Qxe7+ {[%clk 0:00:35.2]} 32. dxe7 {[%clk 0:01:31]} 32... Kf7 {[%clk
0:00:34]} 33. Rd7 {[%clk 0:01:21.4]} 33... Bc6 {[%clk 0:00:25.5]} 34. Rc7 {[%clk
0:01:20.7]} 34... Be8 {[%clk 0:00:23.7]} 35. cxb5 {[%clk 0:01:15.6]} 35... axb5
{[%clk 0:00:21.2]} 36. Rxc5 {[%clk 0:01:13.3]} 36... Kxe7 {[%clk 0:00:20.4]} 37.
Kd3 {[%clk 0:01:10.6]} 37... Rh3+ {[%clk 0:00:18.2]} 38. Kd4 {[%clk 0:01:09.9]}
38... Rxb3 {[%clk 0:00:16.2]} 39. Rc7+ {[%clk 0:01:07.1]} 39... Bd7 {[%clk
0:00:16.6]} 40. Ra7 {[%clk 0:01:02.6]} 40... b4 {[%clk 0:00:15.2]} 41. a4 {[%clk
0:01:01.3]} 41... Ra3 {[%clk 0:00:15.4]} 42. a5 {[%clk 0:01:01.1]} 42... b3
{[%clk 0:00:15.7]} 43. Kc3 {[%clk 0:01:00.3]} 43... Ke6 {[%clk 0:00:09.8]} 44.
Kb2 {[%clk 0:00:59.8]} 44... Ra4 {[%clk 0:00:06]} 45. Kxb3 {[%clk 0:00:59.3]}
45... f4 {[%clk 0:00:04.6]} 46. Rxd7 {[%clk 0:00:58.1]} 46... Kxd7 {[%clk
0:00:04.6]} 47. Kxa4 {[%clk 0:00:57.8]} 47... Kc7 {[%clk 0:00:05.2]} 48. Kb5
{[%clk 0:00:57.3]} 48... Kb7 {[%clk 0:00:05.5]} 49. a6+ {[%clk 0:00:56.5]} 49...
Ka7 {[%clk 0:00:05.9]} 50. Ka5 {[%clk 0:00:56.1]} 50... g5 {[%clk 0:00:06.3]}
51. Kb5 {[%clk 0:00:55.6]} 51... f3 {[%clk 0:00:06.8]} 52. Kc5 {[%clk
0:00:56.5]} 52... f2 {[%clk 0:00:06.5]} 53. Kd5 {[%clk 0:00:57.4]} 53... f1=Q
{[%clk 0:00:06.7]} 54. Ke5 {[%clk 0:00:58.3]} 54... Qxa6 {[%clk 0:00:06.5]} 55.
Kf5 {[%clk 0:00:59.2]} 55... Qb5+ {[%clk 0:00:07.1]} 56. Kg4 {[%clk 0:00:58.5]}
56... Qc4+ {[%clk 0:00:06.4]} 57. Kxg5 {[%clk 0:00:58.1]} 57... Qd5+ {[%clk
0:00:06.8]} 58. Kh6 {[%clk 0:00:59]} 58... Qf7 {[%clk 0:00:06.4]} 59. Kg5 {[%clk
0:00:58]} 59... Qg6+ {[%clk 0:00:06.9]} 60. Kh4 {[%clk 0:00:56.9]} 60... h6
{[%clk 0:00:06.3]} 61. Kh3 {[%clk 0:00:55.7]} 61... h5 {[%clk 0:00:06.1]} 62.
Kh4 {[%clk 0:00:56.6]} 62... Qg4# {[%clk 0:00:06.5]} 0-1

[Event "Betsys MČR v online bleskovém šachu 2021"]
[Site "Chess.com"]
[Date "2021.04.17"]
[Round "11"]
[White "Fafin1"]
[Black "AdaTra"]
[Result "0-1"]
[WhiteElo "1367"]
[BlackElo "1660"]
[TimeControl "180+1"]
[EndTime "10:50:28 PDT"]
[Termination "Uživatel AdaTra zvítězil na čas"]

1. e4 {[%clk 0:03:00.9]} 1... c6 {[%clk 0:03:00.1]} 2. Bc4 {[%clk 0:02:59.2]}
2... d5 {[%clk 0:03:00.4]} 3. exd5 {[%clk 0:02:57.8]} 3... cxd5 {[%clk
0:03:01.3]} 4. Bb5+ {[%clk 0:02:57.5]} 4... Bd7 {[%clk 0:03:01.3]} 5. Bxd7+
{[%clk 0:02:57.2]} 5... Qxd7 {[%clk 0:03:02]} 6. d4 {[%clk 0:02:56.6]} 6... Nc6
{[%clk 0:03:01.7]} 7. Nf3 {[%clk 0:02:53.9]} 7... Nf6 {[%clk 0:03:01.1]} 8. c3
{[%clk 0:02:53.4]} 8... e6 {[%clk 0:03:00.5]} 9. O-O {[%clk 0:02:52]} 9... Bd6
{[%clk 0:02:59.6]} 10. Bg5 {[%clk 0:02:50.3]} 10... Ne4 {[%clk 0:02:59]} 11. Bh4
{[%clk 0:02:43.8]} 11... O-O {[%clk 0:02:57.4]} 12. Nbd2 {[%clk 0:02:41.8]}
12... Nxd2 {[%clk 0:02:52.9]} 13. Qxd2 {[%clk 0:02:41.4]} 13... Be7 {[%clk
0:02:49.1]} 14. Bxe7 {[%clk 0:02:39.5]} 14... Qxe7 {[%clk 0:02:50]} 15. Rfe1
{[%clk 0:02:36.3]} 15... b5 {[%clk 0:02:46.1]} 16. b4 {[%clk 0:02:32.5]} 16...
Rfc8 {[%clk 0:02:43.7]} 17. a4 {[%clk 0:02:30.3]} 17... a6 {[%clk 0:02:37.3]}
18. Qd3 {[%clk 0:02:21.1]} 18... Qb7 {[%clk 0:02:18.2]} 19. Ng5 {[%clk 0:02:13]}
19... g6 {[%clk 0:02:14]} 20. Qh3 {[%clk 0:02:07.7]} 20... h5 {[%clk 0:02:02.2]}
21. Qd3 {[%clk 0:02:01.3]} 21... Ne7 {[%clk 0:01:53.1]} 22. Rec1 {[%clk
0:01:49.6]} 22... Nf5 {[%clk 0:01:50.8]} 23. g3 {[%clk 0:01:44.1]} 23... Nd6
{[%clk 0:01:47.2]} 24. Nf3 {[%clk 0:01:33.3]} 24... Ne4 {[%clk 0:01:44.4]} 25.
Ne5 {[%clk 0:01:28.7]} 25... Rc7 {[%clk 0:01:39.1]} 26. axb5 {[%clk 0:01:24.3]}
26... axb5 {[%clk 0:01:38.7]} 27. Rxa8+ {[%clk 0:01:20.9]} 27... Qxa8 {[%clk
0:01:39.6]} 28. Qxb5 {[%clk 0:01:15.1]} 28... Rxc3 {[%clk 0:01:32.9]} 29. Rxc3
{[%clk 0:01:13]} 29... Nxc3 {[%clk 0:01:32.9]} 30. Qd7 {[%clk 0:00:50.7]} 30...
Qf8 {[%clk 0:01:21.5]} 31. Kg2 {[%clk 0:00:40.5]} 31... Ne4 {[%clk 0:01:06.6]}
32. b5 {[%clk 0:00:39.3]} 32... Nf6 {[%clk 0:01:05.5]} 33. Qc7 {[%clk
0:00:33.2]} 33... Ne8 {[%clk 0:01:01.6]} 34. Qc8 {[%clk 0:00:26.9]} 34... Nd6
{[%clk 0:00:56.1]} 35. Qc6 {[%clk 0:00:19.3]} 35... g5 {[%clk 0:00:45.5]} 36. b6
{[%clk 0:00:16.9]} 36... f6 {[%clk 0:00:45.2]} 37. Nd7 {[%clk 0:00:14.9]} 37...
Qe7 {[%clk 0:00:37.3]} 38. b7 {[%clk 0:00:14.1]} 38... Nxb7 {[%clk 0:00:34.8]}
39. Qxb7 {[%clk 0:00:13]} 39... Kf7 {[%clk 0:00:28.1]} 40. Qc6 {[%clk
0:00:12.3]} 40... Qb4 {[%clk 0:00:20.4]} 41. Qc5 {[%clk 0:00:09.8]} 41... Qb7
{[%clk 0:00:17.5]} 42. Nb6 {[%clk 0:00:06.9]} 42... Kg6 {[%clk 0:00:14.1]} 43.
Nc8 {[%clk 0:00:04.8]} 43... Kf5 {[%clk 0:00:13.1]} 44. Ne7+ {[%clk 0:00:04]}
44... Ke4 {[%clk 0:00:10.9]} 0-1